Cogmind - Beta 15 @@@ ROGUE MODE // 2025.08.23 @ 20:38:38 Player: Mercey Result: Destroyed by S-10 Pest with Light Assault Rifle Performance ------------- Evolutions (2) 1000 Regions Visited (4) 800 Robots Destroyed (32) 160 Value Destroyed (811) 811 Prototype IDs (2) 40 Alien Tech Used (0) 0 Bonus (14) 14 TOTAL SCORE: 2825 Bonus ------- Follower Combat Kills 14 Cogmind --------- Core Integrity 0/550 Matter 300/300 Energy 214/275 System Corruption 2% Temperature Cool (0) Movement Core (100) Ox1 Location -8/Materials Parts ------- > --- POWER (1) -------- Deuterium Engine > --- PROPULSION (5) --- Flight Unit > --- UTILITY (3) ------ Advanced Weight Redist. System Advanced Weight Redist. System Advanced Visual Processing Unit > --- WEAPON (2) ------- Heavy EM Shotgun Maul > --- INVENTORY (5) ---- Light Ion Engine Weight Redist. System ECM Suite Reaction Control System Peak State ------------ > --- POWER ------------ Deuterium Engine > --- PROPULSION ------- Cooled Airjet Cooled Airjet Flight Unit > --- UTILITY ---------- Advanced Weight Redist. System Advanced Weight Redist. System Advanced Visual Processing Unit > --- WEAPON ----------- Heavy EM Shotgun Maul > --- INVENTORY -------- Light Ion Engine Weight Redist. System ECM Suite Reaction Control System [Rating: 29] Favorites ----------- Power Ion Engine Engine Ion Engine Power Core Light Nuclear Core Propulsion Aluminum Leg Leg Aluminum Leg Hover Unit Cooled Airjet Flight Unit Flight Unit Utility Small Storage Unit Device Sensor Array Storage Small Storage Unit Processor Advanced Visual Processing Unit Weapon Medium Laser Energy Gun Medium Laser Ballistic Gun Light Assault Rifle Ballistic Cannon Improved Light Cannon Impact Weapon Maul Build | -11 -10 -10 -9 -8 ------- Run | Yrd Mat Min Mat Mat Slots Evolved 4 | . . . 2 2 Power . | . . . . . Propulsion 3 | . . . 2 1 Utility 1 | . . . . 1 Weapon . | . . . . . Parts Attached 28 | 5 1 1 8 13 Power 5 | 1 . . 1 3 Engine 4 | 1 . . 1 2 Core 1 | . . . . 1 Reactor . | . . . . . Propulsion 8 | 1 1 . . 6 Treads . | . . . . . Leg 3 | 1 1 . . 1 Wheel . | . . . . . Hover 4 | . . . . 4 Flight 1 | . . . . 1 Utility 8 | 1 . 1 4 2 Device 5 | . . 1 2 2 Storage 1 | 1 . . . . Processor 2 | . . . 2 . Hackware . | . . . . . Protection . | . . . . . Artifact . | . . . . . Weapon 7 | 2 . . 3 2 Energy Gun 4 | 1 . . 2 1 Energy Cannon . | . . . . . Ballistic Gun 1 | 1 . . . . Ballistic Cannon 1 | . . . 1 . Launcher . | . . . . . Special Weapon . | . . . . . Impact Weapon 1 | . . . . 1 Slashing Weapon . | . . . . . Piercing Weapon . | . . . . . Special Melee Weapon . | . . . . . Unidentified Prototypes 2 | . . . . 2 Parts Lost 18 | . . 4 2 12 Power 4 | . . 1 . 3 Propulsion 7 | . . 2 . 5 Utility 2 | . . . . 2 Weapon 5 | . . 1 2 2 Highest Loss Streak 4 | . . 4 1 4 To Critical Strikes . | . . . . . Average Backups 5 | 1 2 4 7 5 Power 1 | . 1 1 1 1 Propulsion . | . . . . . Utility 3 | . . 2 4 3 Weapon . | . 1 1 . . Tool/Special . | . . . . . Unused Backups 4 | . . . . 4 Power 1 | . . . . 1 Propulsion . | . . . . . Utility 3 | . . . . 3 Weapon . | . . . . . Tool/Special . | . . . . . Average Slot Usage (%) 67 | . 85 98 52 48 Engine 10 | . 14 13 10 3 Leg 11 | . 28 27 . 2 Hover 2 | . . . . 10 Device 5 | . . 13 . 4 Storage 10 | . 14 14 11 4 Processor 5 | . . . 9 9 Energy Gun 12 | . 14 14 14 6 Ballistic Gun 5 | . 14 13 . . Ballistic Cannon 2 | . . . 6 . Peak Build Rating 29 | 5 6 7 10 29 Average Rating 8 | 4 6 6 7 15 On Entrance 4 | . 5 6 3 10 Naked Turns . | . . . . . Heaviest Build 16 | 13 13 14 15 16 Greatest Support 25 | 10 20 20 3 25 Greatest Overweight (x) 5 | 4 . 2 4 5 Average Overweight (x) 1 | 1 . . 3 . Largest Inventory Capacity 8 | 8 8 8 8 8 Average Capacity 7 | 7 8 8 8 6 Most Carried 8 | 3 4 5 8 6 Average Carried 5 | 1 2 4 7 4 Final Capacity 8 | 8 8 8 8 5 Final Carried 7 | 3 4 5 7 4 Class Distribution -------------------- 100% | Mutant Dominant Class ---------------- Mutant | -10/Materials Mutant | -10/Mines Mutant | -9/Materials Mutant | -8/Materials Resources | -11 -10 -10 -9 -8 ----------- Run | Yrd Mat Min Mat Mat Matter Collected 614 | 207 . 34 234 139 Remotely . | . . . . . Salvage Created 943 | . 44 51 353 495 Parts 43 | . 3 4 24 12 Haulers Intercepted 3 | . 1 . 2 . Recyclers Shooed . | . . . . . Parts Field Recycled . | . . . . . Retrieved Matter . | . . . . . Parts Self-Destructed . | . . . . . Prevented . | . . . . . Kills | -11 -10 -10 -9 -8 ------- Run | Yrd Mat Min Mat Mat Combat Hostiles Destroyed 27 | . . 2 12 13 Melee 1 | . . . . 1 Guns 11 | . . 2 5 4 Cannons 7 | . . . 6 1 Classes Destroyed 7 | . 1 2 2 2 Hauler 3 | . 1 . 2 . Recycler 1 | . . . . 1 Watcher 1 | . . . 1 . Swarmer 11 | . . 1 7 3 Grunt 12 | . . 1 4 7 Brawler 1 | . . . . 1 Sentry 3 | . . . 1 2 Best Kill Streak 5 | . 1 1 5 4 Combat Bots Only 5 | . . 1 5 4 Max Kills in Single Turn 1 | . 1 1 1 1 Gunslinging . | . . . . . Exploded . | . . . . . Melee 1 | . . . . 1 Uniques/NPCs Destroyed . | . . . . . Combat | -11 -10 -10 -9 -8 -------- Run | Yrd Mat Min Mat Mat Hostile Shots Fired 265 | . 5 59 76 125 Missed 68 | . 2 14 23 29 Hits 197 | . 3 45 53 96 Melee 1 | . . . . 1 Projectile 196 | . 3 45 53 95 Critical Strikes 6 | . . . . 6 Damage Taken 2440 | . 23 492 513 1412 Core 858 | . 7 135 163 553 Absorbed by Shields . | . . . . . Core Remaining (%) 67 | 100 . 43 59 . Volleys Fired 82 | . 3 12 39 28 Largest 2 | . 2 2 2 2 Hottest 100 | . 70 70 100 98 Shots Fired 134 | . 6 25 74 29 Gun 112 | . 6 25 53 28 Cannon 22 | . . . 21 1 Launcher . | . . . . . Special . | . . . . . Kinetic 37 | . 3 12 21 1 Thermal 97 | . 3 13 53 28 Explosive . | . . . . . Electromagnetic . | . . . . . Robot Hit Streak 13 | . 5 13 13 13 Robot Miss Streak 7 | . . 1 3 7 Penetration Max . | . . . . . Secondary Targets 1 | . . 1 . . Max Gunslinging Chain 1 | . . 1 . . Shots Hit Robots 130 | . 5 16 54 55 Core Hits 70 | . 2 5 28 35 Critical Kills . | . . . . . Critical Parts Destroyed 7 | . . . . 7 Critical Strikes 14 | . . 1 6 7 Burn 6 | . . 1 5 . Blast 1 | . . . 1 . Smash 7 | . . . . 7 Melee Attacks 36 | . . . . 36 Impact 36 | . . . . 36 Slashing . | . . . . . Piercing . | . . . . . Sneak Attacks 1 | . . . . 1 Combat Hostiles . | . . . . . Follow-up Attacks . | . . . . . Damage Inflicted 2506 | . 56 166 800 1484 Guns 1176 | . 54 166 515 441 Cannons 301 | . . . 279 22 Explosions . | . . . . . Melee 1016 | . . . . 1016 Ramming 13 | . 2 . 6 5 Kinetic 373 | . 17 55 279 22 Thermal 1104 | . 37 111 515 441 Explosive . | . . . . . Electromagnetic . | . . . . . Impact 1016 | . . . . 1016 Slashing . | . . . . . Piercing . | . . . . . Highest Corruption 2 | . 2 2 . 2 Average Corruption 1 | . 1 2 . 2 Corruption Purged . | . . . . . Corruption Blocked . | . . . . . Effects 14 | . 2 10 . 2 Message Errors 2 | . 1 . . 1 Matter Fused 4 | . . 4 . . Heat Flow Errors 1 | . . 1 . . Parts Rejected 1 | . . . . 1 Parts Fused 1 | . . 1 . . Data Loss (minor) 3 | . . 3 . . Data Loss (major) 1 | . 1 . . . Misfires 1 | . . 1 . . Overload Shots . | . . . . . Overflow Damage 396 | . . . 4 392 Projectiles 4 | . . . 4 . Explosions . | . . . . . Melee 392 | . . . . 392 Knockbacks 5 | . . . 1 4 Impact 4 | . . . . 4 Kinetic 1 | . . . 1 . Secondary . | . . . . . Self-Inflicted Damage 2 | . . . 2 . Shots . | . . . . . Rammed 7 | . . . 4 3 Targets Rammed 13 | . 2 . 4 7 Kicked 6 | . 2 . . 4 Crushed . | . . . . . Highest Temperature 342 | . 70 240 342 338 Average Temperature 92 | . 41 98 82 107 Received Heat Transfer 1134 | . . 264 132 738 Effects 4 | . . 3 1 . Interference 3 | . . 3 . . Matter Decay 1 | . . . 1 . Siege Activations . | . . . . . Martial Activations . | . . . . . Shielding Activations . | . . . . . Robots Disrupted . | . . . . . Combat Hostiles . | . . . . . Robots Corrupted 7 | . . . . 7 Combat Hostiles 7 | . . . . 7 Parts Fried 6 | . . . . 6 Impact Corruptions 14 | . . . . 14 Robots Melted 1 | . . . 1 . Combat Hostiles 1 | . . . 1 . Parts Melted 6 | . . . 6 . Heat Transferred 2806 | . 111 407 1753 535 Parts Sabotaged . | . . . . . Parts Stolen . | . . . . . Parts Stripped . | . . . . . Power Chain Reactions . | . . . . . Alert | -11 -10 -10 -9 -8 ------- Run | Yrd Mat Min Mat Mat Maximum Alert Level . | . . . . . Low Security (%) 100 | 100 100 100 100 100 Level 1 . | . . . . . Level 2 . | . . . . . Level 3 . | . . . . . Level 4 . | . . . . . Level 5 . | . . . . . High Security . | . . . . . Max Security . | . . . . . Peak Influence 185 | . 36 78 152 185 Initial 57 | . . 13 . 57 Average 30 | . 3 8 27 81 Influence Increases 877 | . 53 98 336 390 Destroy 0b10 Robot/C 580 | . . 80 240 260 Destroy 0b10 Robot/NC 25 | . 5 . 15 5 Destroy Leader 118 | . 2 10 56 50 Allied During Kill 8 | . . 8 . . Successful Hack 23 | . 16 . 7 . Destroy Structure 3 | . . . 3 . Lose Combat Pursuer 120 | . 30 . 15 75 Influence Decreases 730 | . 17 134 199 380 Entered New Map 103 | . . 23 . 80 Time Decay 447 | . 17 71 179 180 Lost Part 160 | . . 20 20 120 Lost Ally 20 | . . 20 . . Squads Dispatched 6 | . . . 4 2 Investigation 3 | . . . 2 1 Extermination . | . . . . . Reinforcement 3 | . . . 2 1 Assault . | . . . . . Garrison . | . . . . . Intercept . | . . . . . Searches Triggered . | . . . . . Construction Impeded . | . . . . . Haulers Reinforced . | . . . . . Active Scanning Responses . | . . . . . Cargo Convoy Interrupts . | . . . . . Stealth | -11 -10 -10 -9 -8 --------- Run | Yrd Mat Min Mat Mat Distress Signals 5 | . . . 3 2 Communications Jammed . | . . . . . Distress Signals . | . . . . . Times Spotted 58 | . 5 8 24 21 Peak Tracking Total 10 | . 4 5 7 10 Tactical Retreats 5 | . 1 . 1 3 Traps | -11 -10 -10 -9 -8 ------- Run | Yrd Mat Min Mat Mat Traps Triggered 3 | . 2 . 1 . Indirectly . | . . . . . Trap Hack Attempts . | . . . . . Triggered . | . . . . . Disarmed . | . . . . . Reprogrammed . | . . . . . Reused . | . . . . . Traps Extracted . | . . . . . Installed . | . . . . . Triggered . | . . . . . Machines | -11 -10 -10 -9 -8 ---------- Run | Yrd Mat Min Mat Mat Machines Disabled . | . . . . . Max in Single Turn . | . . . . . Machines Repaired . | . . . . . Machines Dismantled . | . . . . . Machines Sabotaged . | . . . . . Overloaded Fab Kills . | . . . . . Hacking | -11 -10 -10 -9 -8 --------- Run | Yrd Mat Min Mat Mat Machines Accessed 6 | . 2 . 2 2 Terminals 5 | . 2 . 2 1 Fabricators . | . . . . . Repair Stations . | . . . . . Recycling Units . | . . . . . Scanalyzers 1 | . . . . 1 Garrison Access . | . . . . . Total Hacks 12 | . 4 . 4 4 Successful 4 | . 1 . 1 2 Failed 8 | . 3 . 3 2 Catastrophic 5 | . 2 . 2 1 Database Lockouts . | . . . . . Manual 10 | . 4 . 4 2 Terminals 10 | . 4 . 4 2 Fabricators . | . . . . . Repair Stations . | . . . . . Recycling Units . | . . . . . Scanalyzers 2 | . . . . 2 Garrison Access . | . . . . . Terminal Hacks 2 | . 1 . 1 . Branch Access Points 2 | . 1 . 1 . Fabricator Hacks . | . . . . . Repair Station Hacks . | . . . . . Recycling Unit Hacks . | . . . . . Scanalyzer 2 | . . . . 2 Insert Component 1 | . . . . 1 Analyze 1 | . . . . 1 Garrison Access Hacks . | . . . . . Unauthorized Hacks . | . . . . . Terminals . | . . . . . Fabricators . | . . . . . Repair Stations . | . . . . . Recycling Units . | . . . . . Scanalyzers . | . . . . . Garrison Access . | . . . . . Data Cores Recovered . | . . . . . Used . | . . . . . Hacking Detections 3 | . 1 . 1 1 Full Trace Events 3 | . 1 . 1 1 Feedback Events . | . . . . . Feedback Blocked . | . . . . . Robot Schematics Acquired . | . . . . . Robots Built . | . . . . . Authchips . | . . . . . Time . | . . . . . Total Robot Build Rating . | . . . . . Part Schematics Acquired 1 | . . . . 1 Parts Built . | . . . . . Authchips . | . . . . . Time . | . . . . . Total Part Build Rating . | . . . . . Parts Repaired . | . . . . . Time . | . . . . . Parts Recycled . | . . . . . Recycled Matter . | . . . . . Retrieved Matter . | . . . . . Retrieved Components . | . . . . . Parts Scanalyzed 1 | . . . . 1 Part Schematics Acquired 1 | . . . . 1 Parts Damaged . | . . . . . Bothacking | -11 -10 -10 -9 -8 ------------ Run | Yrd Mat Min Mat Mat Used RIF Installer . | . . . . . Robots Hacked . | . . . . . Non-combat . | . . . . . Combat . | . . . . . Robot Hacks Applied . | . . . . . Relay Couplers Released . | . . . . . Fabnet Peak Effective % . | . . . . . Robots Rewired . | . . . . . Allies Hacked . | . . . . . Hacks Repelled . | . . . . . Allies | -11 -10 -10 -9 -8 -------- Run | Yrd Mat Min Mat Mat Total Allies 2 | . . 2 . . Largest Group 2 | . . 2 . . Highest-Rated Group 55 | . . 55 . . Highest-Rated Ally 31 | . . 31 . . Total Orders . | . . . . . Ally Attacks 4 | . . 4 . . Total Damage 63 | . . 63 . . Kills 2 | . . 2 . . Allies Corrupted . | . . . . . Allies Melted . | . . . . . Intel | -11 -10 -10 -9 -8 ------- Run | Yrd Mat Min Mat Mat Active Infowar (turns) 1471 | . . 516 663 292 Optics 955 | . . . 663 292 Sensors 654 | . . 516 . 138 Robot Analysis Total . | . . . . . Derelict Logs Recovered . | . . . . . Drone Launches . | . . . . . Drone Recoveries . | . . . . . Exploration | -11 -10 -10 -9 -8 ------------- Run | Yrd Mat Min Mat Mat Turns Passed 1945 | 88 156 552 735 414 Spaces Moved 824 | 40 119 168 275 222 Core 342 | 17 . 8 275 42 Treads . | . . . . . Legs 345 | 23 119 160 . 43 Wheels . | . . . . . Hover 137 | . . . . 137 Flight . | . . . . . Fastest Speed 42 | 50 120 120 100 42 Average Speed 146 | 196 120 121 211 88 Slowest Speed 300 | 250 120 190 250 300 Overloaded Moves . | . . . . . Propulsion Burnouts . | . . . . . Robots Hopped . | . . . . . Potential Cave-ins . | . . . . . Cave-ins Triggered . | . . . . . Exploration Rate (%) 23 | 4 29 39 28 19 Regions Visited 4 Branch Regions 1 Pre-discovered Areas . | . . . . . Known Exits Taken 1 | . 1 . . . Unknown Exits Taken 3 | 1 . 1 1 . Scrap Searched . | . . . . . Spaces Dug . | . . . . . Terrain Destroyed 2 | . . . 2 . Melee . | . . . . . Projectile 2 | . . . 2 . AOE . | . . . . . Terrain Rammed . | . . . . . Walls Destroyed . | . . . . . Machines Disabled . | . . . . . Actions | -11 -10 -10 -9 -8 --------- Run | Yrd Mat Min Mat Mat Total 1349 | 47 126 494 349 333 Wait 350 | . . 312 15 23 Move 820 | 39 118 167 274 222 Hop . | . . . . . Pick Up 11 | 3 2 2 3 1 Fast Attach 21 | 5 . . 5 11 Attach 10 | . 1 1 4 4 Detach 4 | . . . 4 . Swap 1 | . . . . 1 Drop 1 | . . . 1 . Fire 82 | . 3 12 39 28 Melee 36 | . . . . 36 Ram 7 | . . . 4 3 Kick 6 | . 2 . . 4 Crush . | . . . . . Escape Stasis . | . . . . . Rewire . | . . . . . Trap . | . . . . . Miscellaneous . | . . . . . Route ------- -11/Scrapyard -10/Materials (discovered 2 exits: *Min x2) -10/Mines -9/Materials (discovered 4 exits: *Mat / Min x2 / Sto) -8/Materials History --------- Turn | Location | Event 28 | -11/Scrapyard | Discovered new exit (range 16) 89 | -11/Scrapyard | Entered Materials 214 | -10/Materials | Identified exit to Mines 245 | -10/Materials | Entered Mines 259 | -10/Mines | Met a Derelict bent on vengeance 316 | -10/Mines | Build established: Mutant 392 | -10/Mines | Discovered new exit (range 5) 423 | -10/Mines | Excavation squad dispatched 423 | -10/Mines | A large section of the Mines collapsed 673 | -10/Mines | Excavation squad dispatched 785 | -10/Mines | Core integrity fell below 50% 797 | -10/Mines | Entered Materials 797 | -9/Materials | Evolved 2 slots: Propulsion x2 819 | -9/Materials | Lost 4 parts (1p2n1w) 923 | -9/Materials | Identified exit to Mines 923 | -9/Materials | Identified exit to Storage 1466 | -9/Materials | Discovered new exit (range 19) 1532 | -9/Materials | Entered another Materials area 1532 | -8/Materials | Evolved 2 slots: Propulsion x1, Utility x1 1740 | -8/Materials | Core integrity fell below 50% 1768 | -8/Materials | Lost 4 parts (1p1n1u1w) 1827 | -8/Materials | Core integrity fell below 20% 1946 | -8/Materials | Destroyed by S-10 Pest with Light Assault Rifle Last Messages --------------- 01899_ Acquired 10 matter. 01901_ Acquired Cld. Airjet. 01905_ Connecting with Terminal... 01905_ ALERT: Suspicious activity at Terminal M006. Dispatching Investigation squad. 01913_ Acquired Flight Unit. 01916_ Acquired Adv. Weight Redist. System. 01932_ Acquired 32 matter. 01932_ Acquired 3 matter. 01933_ Acquired 5 matter. 01934_ Sneak attack on A-02 Transporter. 01934_ Destroyed Weight Redist. System. 01934_ A-02 Transporter system corrupted by crushing effect. 01934_ A-02 Transporter sends out distress signal. 01940_ Cld. Airjet destroyed. 01940_ G-47 Trooper suffers critical hit (Smash). 01940_ Destroyed Lgt. Nuclear Core. 01940_ G-47 Trooper system corrupted by crushing effect. 01940_ G-47 Trooper knocked back. 01942_ Cld. Airjet destroyed. Map ----- +----------------------------------------------------+ | ????????????????????##! !!#?????? | | ????????????????????#! !!#?????? | | ????????????????????#! !!#?????? | | ????????????????????#! ### """ #####?????? | | ????????????????????#! ??# """ #?????????? | | ????????????????????##! ### """ #?????????? | | ?????????????????????####"" #?????????? | | ????????????????????????#"" #?????????? | | ????????????????????????#"T """ #?????????? | | ????????????????????????#"" """ ##????????? | | ????????????????????????#"" """ T#????????? | | ?????????????????????????## ##????????? | | ??????????????????????????# ###???????? | | ??????????????????????????# """ #???????? | | ??????????????????????????# """ #???????? | | ????????????????? ????????# """ #???????? | | ???????????????? ???????# #???????? | | ??????????????? ??????# #???????? | | ?????????????? ?????# #???????? | | ?????????????? ???## ###################? | | ????????????? ### #??????# T #? | | ????????????? [ ######## ! !! #? | | ????????????? # # !! #? | | ????????????????##########% # """# ! #? | | ??????????????????######### ## """#[ """ ## | | ??????????????????# !/ @#= ## """# """ # | | ??????????????????# /%=%s %## # "" ## | | ??????????????????# =s# ## # % #? | | ??????????????????#! ] # #####+####+########? | | ??????????????????# # #?????? | | ??????????????????######### #?????? | | ?????????????????????######+######+####+########? | | ?????????????????????# # ?# #? | | ?????????????????????# # # #? | | ?????????????????????# # # #? | | ?????????????????????# # """ # #? | | ?????????????????????# """"" # """ # #? | | ?????????????????????# """"" # """ # """ #? | | ?????????????????????# """"" ######## """ #? | | ?????????????????????# #??????# """ #? | | ?????????????????????###########??????##########? | | | | | | | | | | | | | | | | | | | +----------------------------------------------------+ Best States ------------- Heat Dissipation 31 Energy Generation 14 Energy Capacity 275 Matter Stores 300 Matter Capacity 300 Sight Range 20 Robot Scan Range 14 Terrain Scan Density 10 Additional Mass Support 9 Evasion (%) 56 Item Schematics ----------------- ECM Suite | -8/Materials | Scanalyzed Robot Schematics ------------------ None Fabricated ------------ Nothing Repaired ---------- Nothing Alien Tech Used ----------------- None Achievements -------------- None Challenges ------------ None Game ------ Seed AngularMultireflexRipper Manual? 0 Play Time 00:18:41 Cumulative 36.9 hours Start 2025.08.23 @ 20:21:30 End 2025.08.23 @ 20:38:38 Sessions 1 Manual Loads 0 Difficulty Rogue Special Mode None Game No. 56 Rogue 56 Adventurer 0 Explorer 0 Win Type - Total 0 Types 0/0/0/0/0/0/0/0/0/0 Lore% 12 Gallery% 29 Achievement% 27 Wizard Run 0 Options --------- Layout 0 ASCII 0 Keyboard 1 Movement Numpad Keybinds 0 Fullscreen 1 Font 36/Smallcaps Map View 76x50 Zoom Use 0% Tactical HUD 1 Map Filters NONE Filters NONE Steam 1 RUN: 3107e805-a376-43e1-880c-891662d028c0